[Event "Late-Titled-Tuesday-Blitz-September-26-2023"]
[Site "Chess.com"]
[Date "2023.09.26"]
[Round "7"]
[White "MeisterJabo"]
[Black "KamlaPasand"]
[Result "0-1"]
[WhiteElo "2313"]
[BlackElo "2440"]
[TimeControl "180+1"]
[EndTime "15:15:04 PDT"]
[Termination "KamlaPasand won on time"]

1. e4 {[%clk 0:02:56.6]} 1... e5 {[%clk 0:02:49.9]} 2. Nf3 {[%clk 0:02:55.6]}
2... Nc6 {[%clk 0:02:49.2]} 3. Bc4 {[%clk 0:02:55]} 3... Bc5 {[%clk 0:02:48.9]}
4. c3 {[%clk 0:02:55.1]} 4... Nf6 {[%clk 0:02:49.1]} 5. d4 {[%clk 0:02:54.2]}
5... exd4 {[%clk 0:02:49.6]} 6. cxd4 {[%clk 0:02:55.1]} 6... Bb4+ {[%clk
0:02:50.2]} 7. Nc3 {[%clk 0:02:55.5]} 7... Nxe4 {[%clk 0:02:49.9]} 8. O-O {[%clk
0:02:55.3]} 8... Bxc3 {[%clk 0:02:50.1]} 9. d5 {[%clk 0:02:49.1]} 9... Bf6
{[%clk 0:02:49.4]} 10. Re1 {[%clk 0:02:45]} 10... Ne7 {[%clk 0:02:49.6]} 11.
Rxe4 {[%clk 0:02:44.8]} 11... d6 {[%clk 0:02:49.1]} 12. Bg5 {[%clk 0:02:45.4]}
12... Bxg5 {[%clk 0:02:47.4]} 13. Nxg5 {[%clk 0:02:46.3]} 13... O-O {[%clk
0:02:47.5]} 14. Nxh7 {[%clk 0:02:43.8]} 14... Kxh7 {[%clk 0:02:48.4]} 15. Rh4+
{[%clk 0:02:44.2]} 15... Kg8 {[%clk 0:02:48.2]} 16. Qh5 {[%clk 0:02:44.8]} 16...
f5 {[%clk 0:02:48.3]} 17. Re1 {[%clk 0:02:40.7]} 17... Ng6 {[%clk 0:02:29.2]}
18. Qh7+ {[%clk 0:02:33.4]} 18... Kf7 {[%clk 0:02:29.1]} 19. Rh6 {[%clk
0:02:34]} 19... Qf6 {[%clk 0:02:27.3]} 20. Re7+ {[%clk 0:01:37.7]} 20... Nxe7
{[%clk 0:01:39.2]} 21. Rxf6+ {[%clk 0:01:35.2]} 21... Kxf6 {[%clk 0:01:40.1]}
22. h4 {[%clk 0:01:13.5]} 22... Bd7 {[%clk 0:01:35.1]} 23. Qh5 {[%clk
0:01:06.7]} 23... g6 {[%clk 0:01:31.5]} 24. Qg5+ {[%clk 0:01:04]} 24... Kf7
{[%clk 0:01:32]} 25. h5 {[%clk 0:01:04.7]} 25... Rg8 {[%clk 0:01:28.4]} 26. g3
{[%clk 0:00:58.2]} 26... Rh8 {[%clk 0:01:23.1]} 27. hxg6+ {[%clk 0:00:40.1]}
27... Nxg6 {[%clk 0:01:24]} 28. Bd3 {[%clk 0:00:40.7]} 28... Ne7 {[%clk
0:01:22.2]} 29. Qc1 {[%clk 0:00:33.6]} 29... Nxd5 {[%clk 0:01:07.7]} 30. Bc4
{[%clk 0:00:30.4]} 30... Be6 {[%clk 0:01:07.9]} 31. Bxd5 {[%clk 0:00:29.7]}
31... Bxd5 {[%clk 0:01:08.1]} 32. Qxc7+ {[%clk 0:00:30.3]} 32... Ke6 {[%clk
0:01:08.3]} 33. f3 {[%clk 0:00:29.5]} 33... Rac8 {[%clk 0:01:07.7]} 34. Qg7
{[%clk 0:00:19.2]} 34... Rc1+ {[%clk 0:01:03.3]} 35. Kf2 {[%clk 0:00:19.5]}
35... Rc2+ {[%clk 0:00:42.5]} 36. Ke3 {[%clk 0:00:19.6]} 36... Re8 {[%clk
0:00:41.8]} 37. Kd3 {[%clk 0:00:11.1]} 37... Rcc8 {[%clk 0:00:37.5]} 38. Qg6+
{[%clk 0:00:04.8]} 38... Kd7 {[%clk 0:00:37.3]} 39. Qxf5+ {[%clk 0:00:05.5]}
39... Be6 {[%clk 0:00:37.9]} 40. Qb5+ {[%clk 0:00:05.8]} 40... Kc7 {[%clk
0:00:37.7]} 41. Qb4 {[%clk 0:00:05.4]} 41... Kb8 {[%clk 0:00:35.8]} 42. Qxd6+
{[%clk 0:00:05.1]} 42... Ka8 {[%clk 0:00:36.5]} 43. Qb4 {[%clk 0:00:05]} 43...
Rcd8+ {[%clk 0:00:34.7]} 44. Ke3 {[%clk 0:00:05.4]} 44... Bxa2+ {[%clk
0:00:33.8]} 45. Kf2 {[%clk 0:00:05.8]} 45... Bd5 {[%clk 0:00:32.8]} 46. f4
{[%clk 0:00:04.7]} 46... Bc6 {[%clk 0:00:33]} 47. g4 {[%clk 0:00:04.6]} 47...
Re4 {[%clk 0:00:31.6]} 48. Qa5 {[%clk 0:00:03.4]} 48... Rxf4+ {[%clk 0:00:31.1]}
49. Kg3 {[%clk 0:00:03.9]} 49... Rf3+ {[%clk 0:00:30.2]} 50. Kh4 {[%clk
0:00:04.7]} 50... Rh8+ {[%clk 0:00:29.9]} 51. Kg5 {[%clk 0:00:05.4]} 51... Rg8+
{[%clk 0:00:29.3]} 52. Kh4 {[%clk 0:00:05]} 52... Rf4 {[%clk 0:00:29]} 53. Kh5
{[%clk 0:00:01.9]} 53... Rfxg4 {[%clk 0:00:27.8]} 54. Qe5 {[%clk 0:00:01.4]}
54... Rg1 {[%clk 0:00:25]} 0-1

[Event "Late-Titled-Tuesday-Blitz-September-26-2023"]
[Site "Chess.com"]
[Date "2023.09.26"]
[Round "7"]
[White "scandalgod"]
[Black "YellowJacek"]
[Result "1-0"]
[WhiteElo "2492"]
[BlackElo "2318"]
[TimeControl "180+1"]
[EndTime "15:15:06 PDT"]
[Termination "scandalgod won on time"]

1. d4 {[%clk 0:02:57.5]} 1... Nf6 {[%clk 0:02:59.1]} 2. c4 {[%clk 0:02:57.7]}
2... g6 {[%clk 0:02:59.4]} 3. Nc3 {[%clk 0:02:57.9]} 3... d5 {[%clk 0:02:59.5]}
4. Bg5 {[%clk 0:02:57.3]} 4... Bg7 {[%clk 0:02:57.7]} 5. Nf3 {[%clk 0:02:52.5]}
5... Ne4 {[%clk 0:02:57.2]} 6. Bh4 {[%clk 0:02:44]} 6... Nxc3 {[%clk 0:02:46.7]}
7. bxc3 {[%clk 0:02:44.9]} 7... c5 {[%clk 0:02:44.8]} 8. e3 {[%clk 0:02:43.8]}
8... Qa5 {[%clk 0:02:44]} 9. Qd2 {[%clk 0:02:40.8]} 9... Be6 {[%clk 0:02:29.2]}
10. cxd5 {[%clk 0:02:33.4]} 10... Bxd5 {[%clk 0:02:30.1]} 11. Be2 {[%clk
0:02:33.8]} 11... Nc6 {[%clk 0:02:26.9]} 12. O-O {[%clk 0:02:28.8]} 12... O-O
{[%clk 0:02:25.8]} 13. Rfd1 {[%clk 0:02:09.1]} 13... Rac8 {[%clk 0:02:23]} 14.
h3 {[%clk 0:01:46.7]} 14... Rfd8 {[%clk 0:02:19]} 15. Qb2 {[%clk 0:01:24.9]}
15... b6 {[%clk 0:02:13.8]} 16. a4 {[%clk 0:01:23.8]} 16... h6 {[%clk
0:01:32.2]} 17. Qb5 {[%clk 0:01:19]} 17... g5 {[%clk 0:01:28.1]} 18. Bg3 {[%clk
0:01:19]} 18... Qxc3 {[%clk 0:01:25.5]} 19. Rac1 {[%clk 0:01:08]} 19... Qa5
{[%clk 0:01:25.4]} 20. dxc5 {[%clk 0:01:07.4]} 20... bxc5 {[%clk 0:01:06.7]} 21.
Rxc5 {[%clk 0:01:02.8]} 21... Qxb5 {[%clk 0:01:00]} 22. axb5 {[%clk 0:01:02.2]}
22... Nb4 {[%clk 0:00:50.3]} 23. Rxc8 {[%clk 0:00:46.6]} 23... Rxc8 {[%clk
0:00:51.2]} 24. Nd4 {[%clk 0:00:45.5]} 24... e6 {[%clk 0:00:48]} 25. Ra1 {[%clk
0:00:36.5]} 25... Ra8 {[%clk 0:00:34.5]} 26. Ra4 {[%clk 0:00:31.9]} 26... Bf8
{[%clk 0:00:31.8]} 27. h4 {[%clk 0:00:20.6]} 27... Bc5 {[%clk 0:00:31.3]} 28.
hxg5 {[%clk 0:00:20.1]} 28... hxg5 {[%clk 0:00:32.2]} 29. Be5 {[%clk 0:00:20.1]}
29... Rc8 {[%clk 0:00:26.3]} 30. Bf3 {[%clk 0:00:19.1]} 30... Bxf3 {[%clk
0:00:25.7]} 31. gxf3 {[%clk 0:00:19.1]} 31... Kh7 {[%clk 0:00:24.1]} 32. Kg2
{[%clk 0:00:18.8]} 32... Kg6 {[%clk 0:00:24.4]} 33. Bg3 {[%clk 0:00:15.6]} 33...
Nd3 {[%clk 0:00:23.8]} 34. Nc6 {[%clk 0:00:13.6]} 34... Ra8 {[%clk 0:00:21.1]}
35. Rc4 {[%clk 0:00:12.5]} 35... Bb6 {[%clk 0:00:21]} 36. Rc3 {[%clk 0:00:11.4]}
36... Nc5 {[%clk 0:00:20.3]} 37. Bd6 {[%clk 0:00:09.4]} 37... Nb7 {[%clk
0:00:17.7]} 38. Bb4 {[%clk 0:00:06.9]} 38... a5 {[%clk 0:00:14.7]} 39. bxa6
{[%clk 0:00:05.6]} 39... Rxa6 {[%clk 0:00:14.8]} 40. Ne5+ {[%clk 0:00:05.9]}
40... Kf5 {[%clk 0:00:11.7]} 41. Nc4 {[%clk 0:00:04]} 41... Bd8 {[%clk
0:00:10.7]} 42. Rb3 {[%clk 0:00:04.2]} 42... Na5 {[%clk 0:00:07.6]} 43. e4+
{[%clk 0:00:04.5]} 43... Kg6 {[%clk 0:00:06.3]} 44. Bxa5 {[%clk 0:00:04.2]}
44... Bxa5 {[%clk 0:00:05.9]} 45. Ne5+ {[%clk 0:00:04.7]} 45... Kg7 {[%clk
0:00:05.5]} 46. Nc4 {[%clk 0:00:05]} 46... Bd8 {[%clk 0:00:05.1]} 47. Rb8 {[%clk
0:00:05]} 47... Bf6 {[%clk 0:00:05.2]} 48. Rb7 {[%clk 0:00:05]} 48... Ra8 {[%clk
0:00:03.2]} 49. e5 {[%clk 0:00:05.2]} 49... Bd8 {[%clk 0:00:01.6]} 50. Nd6
{[%clk 0:00:05.6]} 1-0

[Event "Late-Titled-Tuesday-Blitz-September-26-2023"]
[Site "Chess.com"]
[Date "2023.09.26"]
[Round "7"]
[White "Balla_Tamas"]
[Black "aNaartjieZA"]
[Result "0-1"]
[WhiteElo "2427"]
[BlackElo "2611"]
[TimeControl "180+1"]
[EndTime "15:15:07 PDT"]
[Termination "aNaartjieZA won by checkmate"]

1. e4 {[%clk 0:03:00.9]} 1... e6 {[%clk 0:03:00.2]} 2. d4 {[%clk 0:03:00.8]}
2... d5 {[%clk 0:03:00.5]} 3. Nd2 {[%clk 0:03:01.5]} 3... Nf6 {[%clk 0:03:00.5]}
4. e5 {[%clk 0:03:01.1]} 4... Nfd7 {[%clk 0:03:00.8]} 5. Bd3 {[%clk 0:03:01.6]}
5... c5 {[%clk 0:03:01.3]} 6. c3 {[%clk 0:03:02.1]} 6... Nc6 {[%clk 0:03:01.6]}
7. Ne2 {[%clk 0:03:02.4]} 7... cxd4 {[%clk 0:03:01.8]} 8. cxd4 {[%clk
0:03:03.3]} 8... f6 {[%clk 0:03:02.3]} 9. exf6 {[%clk 0:03:04.2]} 9... Nxf6
{[%clk 0:03:02.9]} 10. Nf3 {[%clk 0:03:03.2]} 10... Bd6 {[%clk 0:03:03.4]} 11.
O-O {[%clk 0:03:03.2]} 11... O-O {[%clk 0:03:03.5]} 12. Bg5 {[%clk 0:03:02.1]}
12... Qc7 {[%clk 0:03:02.6]} 13. h3 {[%clk 0:03:02.5]} 13... Bd7 {[%clk
0:03:02.7]} 14. Rc1 {[%clk 0:03:00.5]} 14... Be8 {[%clk 0:03:02.4]} 15. Qc2
{[%clk 0:02:47.6]} 15... h6 {[%clk 0:03:01.7]} 16. Bh4 {[%clk 0:02:43.5]} 16...
Bh5 {[%clk 0:02:53.2]} 17. Nd2 {[%clk 0:02:04.4]} 17... Qb6 {[%clk 0:02:31.8]}
18. Nb3 {[%clk 0:01:46]} 18... Bxe2 {[%clk 0:01:55.4]} 19. Qxe2 {[%clk
0:01:46.9]} 19... Rae8 {[%clk 0:01:55.1]} 20. Bg6 {[%clk 0:01:37.1]} 20... Nxd4
{[%clk 0:01:53.8]} 21. Nxd4 {[%clk 0:01:34.3]} 21... Qxd4 {[%clk 0:01:53.3]} 22.
Bxf6 {[%clk 0:01:33.3]} 22... Qxf6 {[%clk 0:01:50.4]} 23. Bxe8 {[%clk
0:01:33.5]} 23... Rxe8 {[%clk 0:01:50.4]} 24. Rfe1 {[%clk 0:01:23.3]} 24... Qf4
{[%clk 0:01:44.4]} 25. g3 {[%clk 0:01:22.2]} 25... Qf6 {[%clk 0:01:43.3]} 26.
Rc3 {[%clk 0:01:12.4]} 26... b6 {[%clk 0:01:39.4]} 27. Qb5 {[%clk 0:00:53.1]}
27... Rf8 {[%clk 0:01:35.7]} 28. Qe2 {[%clk 0:00:48.7]} 28... Kh8 {[%clk
0:01:19.2]} 29. Rc6 {[%clk 0:00:47.9]} 29... Bc5 {[%clk 0:01:19.4]} 30. Rf1
{[%clk 0:00:41.7]} 30... Re8 {[%clk 0:01:06]} 31. a3 {[%clk 0:00:39]} 31... a5
{[%clk 0:01:05]} 32. b4 {[%clk 0:00:37.7]} 32... axb4 {[%clk 0:01:05.3]} 33.
axb4 {[%clk 0:00:38.4]} 33... Bxb4 {[%clk 0:01:05.6]} 34. Rxb6 {[%clk
0:00:39.1]} 34... Bc5 {[%clk 0:01:05.9]} 35. Rc6 {[%clk 0:00:38.9]} 35... Bd4
{[%clk 0:01:06.1]} 36. Qh5 {[%clk 0:00:26.1]} 36... Rf8 {[%clk 0:01:02.4]} 37.
Qe2 {[%clk 0:00:26.3]} 37... Qg5 {[%clk 0:00:30.4]} 38. Kg2 {[%clk 0:00:22.6]}
38... e5 {[%clk 0:00:25.8]} 39. Rd6 {[%clk 0:00:20.6]} 39... e4 {[%clk
0:00:22.9]} 40. h4 {[%clk 0:00:20.7]} 40... Qe5 {[%clk 0:00:22.7]} 41. Rd7
{[%clk 0:00:20.5]} 41... Bb6 {[%clk 0:00:19]} 42. Qg4 {[%clk 0:00:18.7]} 42...
d4 {[%clk 0:00:17.6]} 43. Rb7 {[%clk 0:00:15.7]} 43... Bc7 {[%clk 0:00:16.8]}
44. Qd7 {[%clk 0:00:14.6]} 44... Bd6 {[%clk 0:00:15.8]} 45. Rd1 {[%clk
0:00:13.3]} 45... e3 {[%clk 0:00:15.4]} 46. Rxd4 {[%clk 0:00:13.3]} 46... Qxd4
{[%clk 0:00:14.4]} 47. Rb6 {[%clk 0:00:10.7]} 47... Rxf2+ {[%clk 0:00:13.3]} 48.
Kh3 {[%clk 0:00:10.7]} 48... Rf6 {[%clk 0:00:13.4]} 49. Qe8+ {[%clk 0:00:10.8]}
49... Kh7 {[%clk 0:00:13.5]} 50. Qd7 {[%clk 0:00:05.1]} 50... Qe5 {[%clk
0:00:12.5]} 51. Qg4 {[%clk 0:00:04.4]} 51... h5 {[%clk 0:00:12.5]} 52. Qe2
{[%clk 0:00:03.6]} 52... Qxg3# {[%clk 0:00:12.6]} 0-1

[Event "Late-Titled-Tuesday-Blitz-September-26-2023"]
[Site "Chess.com"]
[Date "2023.09.26"]
[Round "7"]
[White "nOcHeaTiNgKiD"]
[Black "emeli_chess"]
[Result "1-0"]
[WhiteElo "2587"]
[BlackElo "2370"]
[TimeControl "180+1"]
[EndTime "15:15:08 PDT"]
[Termination "nOcHeaTiNgKiD won by resignation"]

1. d4 {[%clk 0:03:00.9]} 1... Nf6 {[%clk 0:02:59.6]} 2. Nf3 {[%clk 0:03:00.8]}
2... d5 {[%clk 0:02:59.2]} 3. Bf4 {[%clk 0:03:00.4]} 3... c5 {[%clk 0:02:58.5]}
4. e3 {[%clk 0:03:00.9]} 4... Nc6 {[%clk 0:02:57.4]} 5. Nbd2 {[%clk 0:03:01.1]}
5... cxd4 {[%clk 0:02:56.3]} 6. exd4 {[%clk 0:03:01.2]} 6... Bg4 {[%clk
0:02:54.7]} 7. c3 {[%clk 0:03:00.8]} 7... e6 {[%clk 0:02:53.3]} 8. Bd3 {[%clk
0:02:56.8]} 8... Bd6 {[%clk 0:02:50.5]} 9. Bxd6 {[%clk 0:02:54.3]} 9... Qxd6
{[%clk 0:02:50.2]} 10. h3 {[%clk 0:02:52.6]} 10... Bxf3 {[%clk 0:02:50]} 11.
Nxf3 {[%clk 0:02:51.3]} 11... O-O {[%clk 0:02:49.8]} 12. O-O {[%clk 0:02:50.9]}
12... a6 {[%clk 0:02:48.6]} 13. a4 {[%clk 0:02:50.2]} 13... Rab8 {[%clk
0:02:47.2]} 14. a5 {[%clk 0:02:48.5]} 14... b5 {[%clk 0:02:40.3]} 15. axb6
{[%clk 0:02:47.2]} 15... Rxb6 {[%clk 0:02:40.2]} 16. b4 {[%clk 0:02:47.4]} 16...
Ra8 {[%clk 0:02:37.6]} 17. Qe2 {[%clk 0:02:34]} 17... a5 {[%clk 0:02:35.5]} 18.
b5 {[%clk 0:02:25.4]} 18... Ne7 {[%clk 0:02:28.9]} 19. Ne5 {[%clk 0:02:23.9]}
19... Nd7 {[%clk 0:01:58.2]} 20. f4 {[%clk 0:01:53.5]} 20... f6 {[%clk
0:01:48.1]} 21. Ng4 {[%clk 0:01:07.1]} 21... a4 {[%clk 0:01:30.9]} 22. Kh1
{[%clk 0:01:00.8]} 22... a3 {[%clk 0:01:30.5]} 23. Ne3 {[%clk 0:00:52.8]} 23...
Nf8 {[%clk 0:01:23.2]} 24. c4 {[%clk 0:00:50.6]} 24... dxc4 {[%clk 0:01:22.5]}
25. Nxc4 {[%clk 0:00:50.6]} 25... Qxd4 {[%clk 0:01:22.9]} 26. Nxb6 {[%clk
0:00:50.5]} 26... Qxb6 {[%clk 0:01:23.2]} 27. Bc4 {[%clk 0:00:48.6]} 27... Nd5
{[%clk 0:01:22]} 28. f5 {[%clk 0:00:43.6]} 28... Ne3 {[%clk 0:01:18.3]} 29. fxe6
{[%clk 0:00:28.2]} 29... Nxc4 {[%clk 0:01:11.7]} 30. Qxc4 {[%clk 0:00:24.5]}
30... Qxe6 {[%clk 0:01:11.8]} 31. Qb4 {[%clk 0:00:23.6]} 31... a2 {[%clk
0:01:09.6]} 32. b6 {[%clk 0:00:24]} 32... Rb8 {[%clk 0:01:06.2]} 33. b7 {[%clk
0:00:21.8]} 33... Qf7 {[%clk 0:01:03.5]} 34. Qa3 {[%clk 0:00:20.4]} 34... Qxb7
{[%clk 0:01:02.6]} 35. Rxa2 {[%clk 0:00:19.5]} 35... Nd7 {[%clk 0:00:59.9]} 36.
Qe7 {[%clk 0:00:18.1]} 36... Ne5 {[%clk 0:00:59.3]} 37. Qe6+ {[%clk 0:00:17.9]}
37... Qf7 {[%clk 0:00:58.4]} 38. Qa6 {[%clk 0:00:17.5]} 38... Re8 {[%clk
0:00:55.4]} 39. Re2 {[%clk 0:00:17.1]} 39... h6 {[%clk 0:00:55.2]} 40. Qb5
{[%clk 0:00:15.8]} 40... Re7 {[%clk 0:00:54.3]} 41. Qb8+ {[%clk 0:00:15]} 41...
Kh7 {[%clk 0:00:53.8]} 42. Qb1+ {[%clk 0:00:15.1]} 42... Qg6 {[%clk 0:00:53.8]}
43. Qe1 {[%clk 0:00:13]} 43... Rc7 {[%clk 0:00:51]} 44. Qd2 {[%clk 0:00:11]}
44... Rc4 {[%clk 0:00:48.2]} 45. Ref2 {[%clk 0:00:10.4]} 45... Nd3 {[%clk
0:00:45.6]} 46. Rf3 {[%clk 0:00:09.1]} 46... Ne5 {[%clk 0:00:45.4]} 47. R3f2
{[%clk 0:00:09.2]} 47... Nd3 {[%clk 0:00:45.4]} 48. Rf3 {[%clk 0:00:09.5]} 48...
Ne5 {[%clk 0:00:44.8]} 49. Rc3 {[%clk 0:00:09.5]} 49... Ra4 {[%clk 0:00:39.4]}
50. Qf2 {[%clk 0:00:08.4]} 50... Rb4 {[%clk 0:00:37.3]} 51. Rg3 {[%clk
0:00:08.6]} 51... Qe4 {[%clk 0:00:36.3]} 52. Re1 {[%clk 0:00:08.5]} 52... Qd5
{[%clk 0:00:35.4]} 53. Qf5+ {[%clk 0:00:08.5]} 53... Kg8 {[%clk 0:00:35.2]} 54.
Rc1 {[%clk 0:00:08.4]} 54... Rd4 {[%clk 0:00:34.4]} 55. Qxf6 {[%clk 0:00:06.6]}
55... Rd1+ {[%clk 0:00:33.2]} 56. Rxd1 {[%clk 0:00:07.1]} 56... Qxd1+ {[%clk
0:00:33.3]} 57. Kh2 {[%clk 0:00:07.6]} 57... Ng4+ {[%clk 0:00:20.5]} 58. Rxg4
{[%clk 0:00:07]} 58... Qd6+ {[%clk 0:00:20.8]} 59. Qxd6 {[%clk 0:00:06.3]} 1-0

[Event "Late-Titled-Tuesday-Blitz-September-26-2023"]
[Site "Chess.com"]
[Date "2023.09.26"]
[Round "7"]
[White "QuintilianoR"]
[Black "RCone"]
[Result "1/2-1/2"]
[WhiteElo "2664"]
[BlackElo "2435"]
[TimeControl "180+1"]
[EndTime "15:15:10 PDT"]
[Termination "Game drawn by repetition"]

1. e4 {[%clk 0:03:00.9]} 1... d6 {[%clk 0:02:47.1]} 2. d4 {[%clk 0:02:59]} 2...
Nf6 {[%clk 0:02:46]} 3. Nc3 {[%clk 0:02:59]} 3... g6 {[%clk 0:02:40.5]} 4. g3
{[%clk 0:02:59]} 4... Bg7 {[%clk 0:02:38.5]} 5. Bg2 {[%clk 0:02:58.8]} 5... O-O
{[%clk 0:02:38.3]} 6. Nge2 {[%clk 0:02:59.4]} 6... e5 {[%clk 0:02:37.7]} 7. dxe5
{[%clk 0:02:43.8]} 7... dxe5 {[%clk 0:02:35.8]} 8. Qxd8 {[%clk 0:02:44]} 8...
Rxd8 {[%clk 0:02:36.7]} 9. b3 {[%clk 0:02:44.1]} 9... c6 {[%clk 0:02:26.5]} 10.
Bb2 {[%clk 0:02:42.7]} 10... Na6 {[%clk 0:02:23.6]} 11. Rd1 {[%clk 0:02:40.5]}
11... Bg4 {[%clk 0:02:21.4]} 12. h3 {[%clk 0:02:34.1]} 12... Be6 {[%clk
0:02:11]} 13. a3 {[%clk 0:02:29.9]} 13... Nc5 {[%clk 0:02:08.7]} 14. O-O {[%clk
0:02:11.9]} 14... a5 {[%clk 0:02:04.1]} 15. f3 {[%clk 0:01:25.5]} 15... Nh5
{[%clk 0:01:43.3]} 16. Kf2 {[%clk 0:01:21.4]} 16... f5 {[%clk 0:01:35.5]} 17. g4
{[%clk 0:00:48.7]} 17... fxg4 {[%clk 0:01:30.9]} 18. hxg4 {[%clk 0:00:40.6]}
18... Nf4 {[%clk 0:01:25]} 19. Rxd8+ {[%clk 0:00:33.7]} 19... Rxd8 {[%clk
0:01:24]} 20. Rd1 {[%clk 0:00:34.6]} 20... Rxd1 {[%clk 0:01:04.1]} 21. Nxd1
{[%clk 0:00:35.5]} 21... a4 {[%clk 0:00:46.9]} 22. b4 {[%clk 0:00:32.3]} 22...
Nd7 {[%clk 0:00:46.2]} 23. Bf1 {[%clk 0:00:29]} 23... Nxe2 {[%clk 0:00:41]} 24.
Bxe2 {[%clk 0:00:28.3]} 24... b5 {[%clk 0:00:40.9]} 25. Ne3 {[%clk 0:00:21.5]}
25... Nb6 {[%clk 0:00:40.6]} 26. Bd3 {[%clk 0:00:17.9]} 26... h5 {[%clk
0:00:39.4]} 27. gxh5 {[%clk 0:00:15.3]} 27... gxh5 {[%clk 0:00:40.3]} 28. Kg3
{[%clk 0:00:15.6]} 28... Bf6 {[%clk 0:00:39.6]} 29. Ng2 {[%clk 0:00:15.1]} 29...
Kg7 {[%clk 0:00:36.7]} 30. Nh4 {[%clk 0:00:15.2]} 30... Kf7 {[%clk 0:00:27.2]}
31. Ng2 {[%clk 0:00:14.2]} 31... Bc4 {[%clk 0:00:25.4]} 32. Bc1 {[%clk
0:00:13.1]} 32... Be6 {[%clk 0:00:24.4]} 33. Be3 {[%clk 0:00:13]} 33... Nd7
{[%clk 0:00:22.7]} 34. Nh4 {[%clk 0:00:13]} 34... Kg7 {[%clk 0:00:11.4]} 35. Ng2
{[%clk 0:00:11.7]} 35... Kg6 {[%clk 0:00:10.5]} 36. Nh4+ {[%clk 0:00:11.2]}
36... Kf7 {[%clk 0:00:10]} 37. Ng2 {[%clk 0:00:10.6]} 37... Kg6 {[%clk
0:00:09.9]} 38. f4 {[%clk 0:00:11.2]} 38... exf4+ {[%clk 0:00:09.5]} 39. Nxf4+
{[%clk 0:00:12.1]} 39... Kf7 {[%clk 0:00:09.7]} 40. Nxh5 {[%clk 0:00:12.7]}
40... Bb2 {[%clk 0:00:08.1]} 41. Nf4 {[%clk 0:00:12.3]} 41... Bxa3 {[%clk
0:00:07.2]} 42. c3 {[%clk 0:00:12.9]} 42... Bb2 {[%clk 0:00:06.5]} 43. Nxe6
{[%clk 0:00:13.4]} 43... Kxe6 {[%clk 0:00:06.6]} 44. c4 {[%clk 0:00:14]} 44...
a3 {[%clk 0:00:06.7]} 45. cxb5 {[%clk 0:00:14.7]} 45... a2 {[%clk 0:00:06.5]}
46. Bc4+ {[%clk 0:00:15.3]} 46... Ke7 {[%clk 0:00:05.2]} 47. Bxa2 {[%clk
0:00:16.2]} 47... cxb5 {[%clk 0:00:04.5]} 48. Kf2 {[%clk 0:00:16.7]} 48... Bc3
{[%clk 0:00:04.6]} 49. Bc5+ {[%clk 0:00:16.3]} 49... Nxc5 {[%clk 0:00:04.1]} 50.
bxc5 {[%clk 0:00:17.2]} 50... Kd7 {[%clk 0:00:03.5]} 51. Bd5 {[%clk 0:00:16.1]}
51... Bd4+ {[%clk 0:00:03.6]} 52. Ke2 {[%clk 0:00:15.6]} 52... Bxc5 {[%clk
0:00:04.5]} 53. Kd3 {[%clk 0:00:16.4]} 53... Kd6 {[%clk 0:00:04.5]} 54. Bb3
{[%clk 0:00:17]} 54... Ke5 {[%clk 0:00:04.6]} 55. Bd5 {[%clk 0:00:17.9]} 55...
Bd4 {[%clk 0:00:04.6]} 56. Bb3 {[%clk 0:00:18.8]} 56... b4 {[%clk 0:00:04.3]}
57. Bd5 {[%clk 0:00:19.7]} 57... Bc3 {[%clk 0:00:04.8]} 58. Bb3 {[%clk
0:00:20.6]} 58... Bd4 {[%clk 0:00:05.2]} 59. Bd5 {[%clk 0:00:21.5]} 59... Bc3
{[%clk 0:00:05.8]} 60. Bb3 {[%clk 0:00:22.4]} 60... Kd6 {[%clk 0:00:05.9]} 61.
Bd5 {[%clk 0:00:23.3]} 61... Ke5 {[%clk 0:00:06.3]} 1/2-1/2

[Event "Late-Titled-Tuesday-Blitz-September-26-2023"]
[Site "Chess.com"]
[Date "2023.09.26"]
[Round "7"]
[White "sergoy"]
[Black "FairChess_on_YouTube"]
[Result "1/2-1/2"]
[WhiteElo "2956"]
[BlackElo "3086"]
[TimeControl "180+1"]
[EndTime "15:15:13 PDT"]
[Termination "Game drawn by repetition"]

1. d4 {[%clk 0:02:59.6]} 1... Nf6 {[%clk 0:03:00.2]} 2. c4 {[%clk 0:03:00.2]}
2... d6 {[%clk 0:03:00.5]} 3. Nf3 {[%clk 0:03:00.5]} 3... g6 {[%clk 0:03:00]} 4.
Nc3 {[%clk 0:03:01.2]} 4... Bf5 {[%clk 0:02:59.4]} 5. g3 {[%clk 0:02:56.2]} 5...
Bg7 {[%clk 0:02:56]} 6. Qb3 {[%clk 0:02:55.2]} 6... Qc8 {[%clk 0:02:54.3]} 7.
Bg2 {[%clk 0:02:54.2]} 7... O-O {[%clk 0:02:54.2]} 8. O-O {[%clk 0:02:53.5]}
8... Nc6 {[%clk 0:02:54.1]} 9. d5 {[%clk 0:02:35.2]} 9... Na5 {[%clk 0:02:53.8]}
10. Qa4 {[%clk 0:02:33.1]} 10... b6 {[%clk 0:02:53.3]} 11. Nd4 {[%clk
0:02:09.3]} 11... Bh3 {[%clk 0:02:50.1]} 12. Bf4 {[%clk 0:01:41.1]} 12... Bxg2
{[%clk 0:02:40.8]} 13. Kxg2 {[%clk 0:01:42]} 13... e5 {[%clk 0:02:39.2]} 14.
dxe6 {[%clk 0:01:42.2]} 14... fxe6 {[%clk 0:02:39.9]} 15. Nf3 {[%clk 0:01:32.8]}
15... Qb7 {[%clk 0:02:31.5]} 16. Rac1 {[%clk 0:01:05.2]} 16... Nc6 {[%clk
0:02:11.8]} 17. e4 {[%clk 0:00:55.4]} 17... Nh5 {[%clk 0:01:50.2]} 18. Be3
{[%clk 0:00:51.5]} 18... Bxc3 {[%clk 0:01:23.8]} 19. Rxc3 {[%clk 0:00:52.4]}
19... Rf6 {[%clk 0:01:20.6]} 20. Bg5 {[%clk 0:00:51.3]} 20... Rf7 {[%clk
0:01:18.6]} 21. Qd1 {[%clk 0:00:43.8]} 21... Nf6 {[%clk 0:01:11.4]} 22. Qe2
{[%clk 0:00:40.6]} 22... Ng4 {[%clk 0:01:08.8]} 23. Bf4 {[%clk 0:00:33.6]} 23...
Nge5 {[%clk 0:00:47.8]} 24. Bxe5 {[%clk 0:00:24.9]} 24... dxe5 {[%clk
0:00:46.1]} 25. Rd3 {[%clk 0:00:24.4]} 25... Raf8 {[%clk 0:00:45.5]} 26. Rfd1
{[%clk 0:00:24.3]} 26... Qa6 {[%clk 0:00:23.8]} 27. b3 {[%clk 0:00:21.5]} 27...
Nd4 {[%clk 0:00:23.2]} 28. Nxd4 {[%clk 0:00:20]} 28... Rxf2+ {[%clk 0:00:22.8]}
29. Qxf2 {[%clk 0:00:20.6]} 29... Rxf2+ {[%clk 0:00:23.4]} 30. Kxf2 {[%clk
0:00:21.2]} 30... exd4 {[%clk 0:00:24.1]} 31. Rxd4 {[%clk 0:00:21.5]} 31...
Qxa2+ {[%clk 0:00:24.1]} 32. Kf3 {[%clk 0:00:15.7]} 32... Qxb3+ {[%clk
0:00:22.1]} 33. R1d3 {[%clk 0:00:16.3]} 33... Qc2 {[%clk 0:00:20.6]} 34. e5
{[%clk 0:00:16]} 34... c5 {[%clk 0:00:14.4]} 35. Rd7 {[%clk 0:00:13.8]} 35...
Qxc4 {[%clk 0:00:13.4]} 36. Ke3 {[%clk 0:00:13]} 36... Qc1+ {[%clk 0:00:08.6]}
37. Ke2 {[%clk 0:00:13.4]} 37... Qb2+ {[%clk 0:00:07.7]} 38. Kf3 {[%clk
0:00:13.1]} 38... c4 {[%clk 0:00:05.5]} 39. R3d4 {[%clk 0:00:11.2]} 39... Qc3+
{[%clk 0:00:02.5]} 40. Kg4 {[%clk 0:00:11.3]} 40... Qe3 {[%clk 0:00:01.3]} 41.
h4 {[%clk 0:00:03.7]} 41... Qxe5 {[%clk 0:00:01.3]} 42. Kh3 {[%clk 0:00:02.7]}
42... Qf5+ {[%clk 0:00:01.3]} 43. Kh2 {[%clk 0:00:02.8]} 43... Qc2+ {[%clk
0:00:01.7]} 44. Kh3 {[%clk 0:00:03.1]} 44... Qf5+ {[%clk 0:00:02]} 45. Kh2
{[%clk 0:00:03.8]} 45... Qe5 {[%clk 0:00:02.2]} 46. Kh3 {[%clk 0:00:02.8]} 46...
c3 {[%clk 0:00:02.7]} 47. Rc4 {[%clk 0:00:02.5]} 47... Qf5+ {[%clk 0:00:02.4]}
48. Kg2 {[%clk 0:00:02.4]} 48... Qc2+ {[%clk 0:00:02.7]} 49. Kh3 {[%clk
0:00:02.6]} 49... Qf5+ {[%clk 0:00:02.9]} 50. Kg2 {[%clk 0:00:03.3]} 50... Qc2+
{[%clk 0:00:03]} 51. Kh3 {[%clk 0:00:03.5]} 51... Qf5+ {[%clk 0:00:03.4]}
1/2-1/2